fUSD/lending_fUSD_20251118
["ID","MTS","AMOUNT","RATE_DAILY","PERIOD"]
[394306829,1763439041768,-200.0,0.00038512,2]
[394306830,1763439041777,-201.0,0.00038564,7]
[394306831,1763439041787,-159.8,0.000386,14]
[394306832,1763439041796,-200.0,0.00038601,7]
[394306833,1763439041805,-201.0,0.00038757,2]
[394306834,1763439041815,-218.91538464,0.00038766,2]
[394306835,1763439041824,-515.06933902,0.00038768,13]
[394306836,1763439041834,-2341.53832187,0.00038848,2]
[394306837,1763439041846,-150.0,0.00038868,7]
[394306838,1763439041855,-2000.0,0.000393,2]
[394306839,1763439041865,-150.0,0.00039562,7]
[394306840,1763439041874,-617.6,0.00039654,2]
[394306841,1763439041883,-294.43959775,0.00039884,14]
[394306842,1763439041892,-715.339,0.00040068,56]
[394306843,1763439041902,-220.25124633,0.00040236,2]
[394306844,1763439041911,-150.0,0.00040256,7]
[394306845,1763439041920,-555.935,0.00040408,2]
[394306846,1763439041929,-1604.0,0.00040408,2]
[394306847,1763439041939,-220.25124633,0.00040433,2]
[394306848,1763439041948,-220.25124633,0.00040616,2]
[394306849,1763439041958,-58257.91,0.00040653,2]
[394306850,1763439041967,-161.057767,0.00040653,120]
[394306851,1763439041976,-189.330784,0.00040653,120]
[394306852,1763439041986,-161.057767,0.00040653,120]
[394306853,1763439041995,-161.057767,0.00040653,120]
[394306854,1763439042005,-161.057767,0.00040653,120]
[394306855,1763439042017,-1408.159371,0.00041,45]
[394306856,1763439042027,-220.25124633,0.00041034,2]
[394306857,1763439042037,-3755.64116,0.0004124,8]
[394306858,1763439042046,-220.25124633,0.00041283,2]
[394306859,1763439042057,-548.275111,0.000414,47]
[394306860,1763439042066,-3755.64116,0.0004142,9]
[394306861,1763439042077,-220.25124633,0.00041462,2]
[394306862,1763439042089,-150.0,0.00041482,30]
[394306863,1763439042100,-150.0,0.00041482,30]
[394306864,1763439042110,-150.0,0.00041482,30]
[394306865,1763439042119,-150.0,0.00041482,30]
[394306866,1763439042129,-150.0,0.00041482,30]
[394306867,1763439042138,-244.218,0.00041482,30]
[394306868,1763439042147,-163.12080413,0.00041564,15]
[394306869,1763439042157,-218.91538464,0.00041564,4]
[394306870,1763439042166,-2341.53832187,0.0004157,15]
[394306871,1763439042175,-265.82954528,0.0004157,28]
[394306872,1763439042184,-219.07132176,0.0004157,2]
[394306873,1763439042194,-369.2099148,0.0004157,120]
[394306874,1763439042203,-159.8,0.000416,14]
[394306875,1763439042212,-164813.8055134,0.00041637,2]
[394306876,1763439042222,-8788.2663028,0.00041637,2]
[394306877,1763439042247,-5920.1663107,0.00041637,2]
[394306878,1763439042257,-151.0,0.00041637,120]
[394306879,1763439042267,-189.038184,0.00041637,120]
[394306880,1763439042276,-151.0,0.00041637,120]
[394306881,1763439042285,-151.0,0.00041637,120]
[394306882,1763439042295,-151.0,0.00041637,28]
[394306883,1763439042306,-166.98712144,0.00041644,30]
[394306884,1763439042316,-150.0,0.00041644,30]
[394306885,1763439042325,-161.057767,0.00041652,120]
[394306886,1763439042334,-161.057767,0.00041652,120]
[394306887,1763439042344,-161.057767,0.00041652,120]
[394306888,1763439042353,-161.057767,0.00041652,120]
[394306889,1763439042363,-3755.64116,0.00041652,10]
[394306890,1763439042374,-150.75,0.0004166,2]
[394306891,1763439042383,-150.75,0.0004166,2]
[394306892,1763439042393,-150.75,0.0004166,2]
[394306893,1763439042403,-60066.67460078,0.00041662,120]
[394306894,1763439042413,-500.0,0.00041663,40]
[394306895,1763439042422,-500.0,0.00041663,7]
[394306896,1763439042431,-200.0,0.00041664,7]
[394306897,1763439042439,-523.0,0.00041664,30]
[394306898,1763439042448,-1000.0,0.00041666,30]
[394306899,1763439042457,-1000.0,0.00041666,30]
[394306900,1763439042466,-1000.0,0.00041666,30]
[394306901,1763439042475,-1000.0,0.00041666,30]
[394306902,1763439042484,-1000.0,0.00041666,30]
[394306903,1763439042493,-1000.0,0.00041666,30]
[394306904,1763439042504,-1000.0,0.00041666,30]
[394306905,1763439042515,-1000.0,0.00041666,30]
[394306906,1763439042524,-1000.0,0.00041666,30]
[394306907,1763439042534,-1000.0,0.00041666,30]
[394306908,1763439042543,-1000.0,0.00041666,30]
[394306909,1763439042552,-1000.0,0.00041666,30]
[394306910,1763439042561,-1000.0,0.00041666,30]
[394306911,1763439042570,-1000.0,0.00041666,30]
[394306912,1763439042579,-1000.0,0.00041666,30]
[394306913,1763439042589,-1000.0,0.00041666,30]
[394306914,1763439042600,-1000.0,0.00041666,30]
[394306915,1763439042609,-1000.0,0.00041666,30]
[394306916,1763439042618,-1000.0,0.00041666,30]
[394306917,1763439042628,-1000.0,0.00041666,30]
[394306918,1763439042637,-1000.0,0.00041666,30]
[394306919,1763439042646,-1000.0,0.00041666,30]
[394306920,1763439042656,-1000.0,0.00041666,30]
[394306921,1763439042665,-1000.0,0.00041666,30]
[394306922,1763439042674,-1000.0,0.00041666,30]
[394306923,1763439042683,-1000.0,0.00041666,30]
[394306924,1763439042692,-1000.0,0.00041666,30]
[394306925,1763439042701,-1000.0,0.00041666,30]
[394306926,1763439042711,-1000.0,0.00041666,30]
[394306927,1763439042721,-1000.0,0.00041666,30]
[394306929,1763439042730,-1000.0,0.00041666,30]
[394306930,1763439042739,-1000.0,0.00041666,30]
[394306933,1763439042748,-1000.0,0.00041666,30]
[394306936,1763439042758,-1000.0,0.00041666,30]
[394306940,1763439042768,-1000.0,0.00041666,30]
[394306942,1763439042777,-1000.0,0.00041666,30]
[394306943,1763439042787,-1000.0,0.00041666,30]
[394306946,1763439042796,-1000.0,0.00041666,30]
[394306948,1763439042806,-1000.0,0.00041666,30]
[394306949,1763439042816,-1000.0,0.00041666,30]
[394306951,1763439042827,-1000.0,0.00041666,30]
[394306952,1763439042836,-1000.0,0.00041666,30]
[394306953,1763439042845,-1000.0,0.00041666,30]
[394306954,1763439042854,-1000.0,0.00041666,30]
[394306955,1763439042863,-1000.0,0.00041666,30]
[394306957,1763439042873,-1000.0,0.00041666,30]
[394306959,1763439042882,-1000.0,0.00041666,30]
[394306960,1763439042891,-1000.0,0.00041666,30]
[394306961,1763439042901,-1000.0,0.00041666,30]
[394306962,1763439042910,-1000.0,0.00041666,30]
[394306963,1763439042919,-1000.0,0.00041666,30]
[394306964,1763439042929,-1000.0,0.00041666,30]
[394306965,1763439042939,-1000.0,0.00041666,30]
[394306966,1763439042948,-1000.0,0.00041666,30]
[394306967,1763439042958,-1000.0,0.00041666,30]
[394306968,1763439042967,-1000.0,0.00041666,30]
[394306969,1763439042976,-1000.0,0.00041666,30]
[394306970,1763439042986,-1000.0,0.00041666,30]
[394306971,1763439042995,-1000.0,0.00041666,30]
[394306972,1763439043004,-1000.0,0.00041666,30]
[394306973,1763439043018,-1000.0,0.00041666,30]
[394306974,1763439043028,-1000.0,0.00041666,30]
[394306975,1763439043038,-1000.0,0.00041666,30]
[394306976,1763439043047,-1000.0,0.00041666,30]
[394306977,1763439043058,-1000.0,0.00041666,30]
[394306978,1763439043067,-1000.0,0.00041666,30]
[394306979,1763439043077,-1000.0,0.00041666,30]
[394306980,1763439043087,-1000.0,0.00041666,30]
[394306981,1763439043097,-1000.0,0.00041666,30]
[394306982,1763439043107,-1000.0,0.00041666,30]
[394306983,1763439043117,-1000.0,0.00041666,30]
[394306984,1763439043126,-1023.05,0.00041666,30]
[394306985,1763439043137,-325.77,0.00041666,30]
[394306986,1763439043146,-788.71829239,0.00041666,30]
[394306987,1763439043155,-788.71829239,0.00041666,30]
[394306988,1763439043165,-161.057767,0.00041667,120]
[394306989,1763439043174,-161.057767,0.00041667,120]
[394306990,1763439043183,-161.057767,0.00041667,120]
[394306991,1763439043193,-161.057767,0.00041667,120]
[394306992,1763439043202,-161.057767,0.00041667,120]
[394306993,1763439043211,-40.16922552,0.00041667,120]
[394306994,1763439043267,-120.88854148,0.00041667,120]
[394306995,1763439043277,-161.057767,0.00041667,120]
[394306996,1763439043287,-161.057767,0.00041667,120]
[394306997,1763439043297,-161.057767,0.00041667,120]
[394306998,1763439043306,-161.057767,0.00041667,120]
[394306999,1763439043316,-161.057767,0.00041667,120]
[394307000,1763439043325,-161.057776,0.00041667,120]
[394307001,1763439043335,-200.0,0.00041667,7]
[394307002,1763439043345,-500.0,0.00041669,120]
[394307003,1763439043354,-500.0,0.0004167,3]
[394307004,1763439043363,-500.0,0.0004167,3]
[394307005,1763439043373,-500.0,0.0004167,3]
[394307006,1763439043383,-1000.0,0.0004167,3]
[394307007,1763439043392,-1000.0,0.0004167,3]
[394307008,1763439043403,-500.0,0.0004167,3]
[394307009,1763439043412,-1000.0,0.0004167,3]
[394307010,1763439043422,-500.0,0.0004167,3]
[394307011,1763439043431,-1000.0,0.0004167,3]
[394307012,1763439043440,-500.0,0.0004167,3]
[394307013,1763439043451,-1000.0,0.0004167,3]
[394307014,1763439043461,-500.0,0.0004167,3]
[394307015,1763439043470,-1000.0,0.0004167,3]
[394307016,1763439043479,-569.93219295,0.0004167,3]
[394307017,1763439043489,-1000.0,0.0004167,3]
[394307018,1763439043499,-1000.0,0.0004167,3]
[394307019,1763439043509,-1000.0,0.0004167,3]
[394307020,1763439043519,-1301.31326391,0.0004167,3]
[394307021,1763439043530,-500.0,0.0004167,3]
[394307022,1763439043539,-1000.0,0.0004167,3]
[394307023,1763439043549,-1000.0,0.0004167,3]
[394307024,1763439043558,-500.0,0.0004167,3]
[394307025,1763439043568,-3755.64116,0.0004167,10]
[394307026,1763439043577,-151.0,0.0004167,28]
[394307027,1763439043586,-151.0,0.0004167,28]
[394307028,1763439043597,-245.527345,0.0004167,28]
[394307029,1763439043606,-200.0,0.0004167,7]
[394307030,1763439043616,-72679.18275794,0.0004167,27]
[394307031,1763439043625,-316.0,0.0004167,30]
[394307032,1763439043634,-3681969.34231235,0.0004167,7]
[394307033,1763439044191,-1.7e-07,0.0004167,7]
[394307034,1763439044202,-1602.63686124,0.0004167,7]
[394307039,1763439044373,-2109.6157733,0.0004167,7]
[394307040,1763439044384,-12081.44253511,0.0004167,7]
[394307041,1763439044397,-8086.00539127,0.0004167,7]
[394307042,1763439044419,-1174.910634,0.0004167,7]
[394307043,1763439044437,-43832.97325,0.0004167,7]
[394307044,1763439044449,-1068.85464755,0.0004167,7]
[394307045,1763439044461,-2423.539998,0.0004167,7]
[394307046,1763439044473,-3302.97586189,0.0004167,7]
[394307047,1763439044511,-384.58072144,0.0004167,7]
[394307048,1763439044610,-262574.29631093,0.0004167,7]
[394307049,1763439044635,-2285.84334041,0.0004167,7]
[394307055,1763439045778,-528.94585,0.0004167,7]
[394307056,1763439046046,-5461.305,0.0004167,7]
[394307057,1763439046059,-2083.78472364,0.0004167,7]
[394307058,1763439046102,-1600.0,0.0004167,7]
[394307059,1763439046114,-500.0,0.0004167,7]
[394307069,1763439070585,151.0,0.0004167,120]
[394307070,1763439070975,250.0,0.0004167,120]
[394307071,1763439071217,151.0,0.0004167,120]
[394307072,1763439071857,151.0,0.0004167,120]
[394307073,1763439072467,151.0,0.0004167,120]
[394307074,1763439073084,151.0,0.0004167,120]
[394307075,1763439075306,-797.11568317,0.00016999,2]
[394307076,1763439107244,-156.66465127,0.00016998,2]
[394307077,1763439110547,-304.751249,0.00016998,2]
[394307078,1763439112676,-38.58409973,0.00016998,2]
[394307079,1763439112700,-261.41590027,0.00016998,2]
[394307080,1763439115333,-293.74818597,0.00016998,2]
[394307081,1763439115357,-63.66339058,0.00016998,2]
[394307082,1763439118551,-336.12842337,0.00016998,2]
[394307083,1763439121912,-100.20818605,0.00016998,2]
[394307084,1763439121936,-74.3253077,0.00016998,2]
[394307085,1763439125345,250.0,0.0004167,120]
[394307086,1763439125398,-157.97344633,0.00016998,2]
[394307087,1763439125529,364.01538291,0.0004167,120]
[394307088,1763439125976,250.0,0.0004167,120]
[394307089,1763439127134,322.6107,0.0004167,120]
[394307090,1763439127978,151.0,0.0004167,120]
[394307091,1763439128007,414.0,0.0004167,120]
[394307092,1763439128193,-250.0,0.00016998,2]
[394307093,1763439128640,151.0,0.0004167,120]
[394307094,1763439129261,250.0,0.0004167,120]
[394307095,1763439129293,151.0,0.0004167,120]
[394307096,1763439129891,250.0,0.0004167,120]
[394307097,1763439129938,151.0,0.0004167,120]
[394307098,1763439130209,151.0,0.0004167,120]
[394307099,1763439130250,151.0,0.0004167,120]
[394307100,1763439130290,-168.63131763,0.00016998,2]
[394307101,1763439130323,250.0,0.0004167,120]
[394307102,1763439130517,250.0,0.0004167,120]
[394307103,1763439130726,151.0,0.0004167,120]
[394307104,1763439130892,151.0,0.0004167,120]
[394307105,1763439130937,250.0,0.0004167,120]
[394307106,1763439131154,250.0,0.0004167,120]
[394307107,1763439131412,151.0,0.0004167,120]
[394307108,1763439131524,151.0,0.0004167,120]
[394307109,1763439131573,250.0,0.0004167,120]
[394307110,1763439131617,500.0,0.0004167,120]
[394307111,1763439131664,200.0,0.0004167,120]
[394307112,1763439131785,250.0,0.0004167,120]
[394307113,1763439132200,250.0,0.0004167,120]
[394307114,1763439132257,500.0,0.0004167,120]
[394307115,1763439132483,250.0,0.0004167,120]
[394307116,1763439132511,-240.95229451,0.00016998,2]
[394307117,1763439132831,250.0,0.0004167,120]
[394307118,1763439133103,250.0,0.0004167,120]
[394307119,1763439133349,277.35679052,0.0004167,30]
[394307120,1763439133441,250.0,0.0004167,120]
[394307121,1763439133914,250.0,0.0004167,120]
[394307122,1763439134252,250.0,0.0004167,120]
[394307123,1763439134545,250.0,0.0004167,120]
[394307124,1763439134576,500.0,0.0004167,120]
[394307125,1763439134696,250.0,0.0004167,120]
[394307126,1763439134786,-195.248751,0.00016998,2]
[394307127,1763439134835,250.0,0.0004167,120]
[394307128,1763439135205,250.0,0.0004167,120]
[394307129,1763439135339,250.0,0.0004167,120]
[394307130,1763439135458,250.0,0.0004167,120]
[394307131,1763439135897,250.0,0.0004167,120]
[394307132,1763439135990,250.0,0.0004167,120]
[394307133,1763439136223,250.0,0.0004167,120]
[394307134,1763439136631,250.0,0.0004167,120]
[394307135,1763439136672,500.0,0.0004167,120]
[394307136,1763439136842,250.0,0.0004167,120]
[394307137,1763439137271,500.0,0.0004167,120]
[394307138,1763439137489,250.0,0.0004167,120]
[394307139,1763439137657,-300.0,0.00016998,2]
[394307140,1763439137893,500.0,0.0004167,120]
[394307141,1763439138091,250.0,0.0004167,120]
[394307142,1763439138554,500.0,0.0004167,120]
[394307143,1763439139146,151.0,0.0004167,120]
[394307144,1763439139779,-304.32788016,0.00016998,2]
[394307146,1763439175407,1640.49,0.00015,2]
[394307147,1763439179934,500.0,0.00016899,2]
[394307148,1763439181335,300.0,0.00016997,2]
[394307149,1763439185892,7293.69045469,0.00016899,2]
[394307150,1763439185917,10000.01,0.00016899,2]
[394307151,1763439186190,444.42666523,0.0004167,120]
[394307152,1763439186309,500.0,0.0004167,120]
[394307153,1763439191699,250.0,0.0004167,120]
[394307154,1763439192754,500.0,0.0004167,120]
[394307155,1763439192817,160.12855637,0.0004167,120]
[394307156,1763439193367,500.0,0.0004167,120]
[394307157,1763439193977,500.0,0.0004167,120]
[394307158,1763439194634,500.0,0.0004167,120]
[394307159,1763439195286,500.0,0.0004167,120]
[394307160,1763439195943,500.0,0.0004167,120]
[394307161,1763439196575,500.0,0.0004167,120]
[394307162,1763439197211,-151.01353006,0.00016899,2]
[394307163,1763439197248,500.0,0.0004167,120]
[394307164,1763439197846,500.0,0.0004167,120]
[394307165,1763439202043,161.0,0.0004167,120]
[394307166,1763439247429,500.0,0.0004167,120]
[394307167,1763439248060,500.0,0.0004167,120]
[394307168,1763439252970,500.0,0.0004167,120]
[394307169,1763439267012,499.99999993,0.0004167,120]
[394307170,1763439312800,500.0,0.0004167,120]
[394307171,1763439318880,250.0,0.0004167,120]
[394307172,1763439357593,1174.00549991,0.0004167,120]
[394307173,1763439367654,500.0,0.0004167,120]
[394307174,1763439367783,500.0,0.0004167,120]
[394307175,1763439367893,500.0,0.0004167,120]
[394307176,1763439368028,500.0,0.0004167,120]
[394307177,1763439368136,500.0,0.0004167,120]
[394307178,1763439368294,500.0,0.0004167,120]
[394307179,1763439368389,500.0,0.0004167,120]
[394307180,1763439368538,500.0,0.0004167,120]
[394307181,1763439368637,500.0,0.0004167,120]
[394307182,1763439368779,500.0,0.0004167,120]
[394307183,1763439368959,631.99926249,0.0004167,120]
[394307184,1763439369022,500.0,0.0004167,120]
[394307185,1763439369291,500.0,0.0004167,120]
[394307186,1763439369550,500.0,0.0004167,120]
[394307187,1763439369583,172.64898781,0.0004167,120]
[394307188,1763439369735,500.0,0.0004167,120]
[394307189,1763439369777,296.19597254,0.0004167,120]
[394307190,1763439369963,500.0,0.0004167,120]
[394307191,1763439370155,500.0,0.0004167,120]
[394307192,1763439370210,500.0,0.0004167,120]
[394307193,1763439370394,500.0,0.0004167,120]
[394307194,1763439370495,500.0,0.0004167,120]
[394307195,1763439370762,500.0,0.0004167,120]
[394307196,1763439370975,500.0,0.0004167,120]
[394307197,1763439371055,500.0,0.0004167,120]
[394307198,1763439371241,500.0,0.0004167,120]
[394307199,1763439371369,500.0,0.0004167,120]
[394307200,1763439371577,206.4885139,0.0004167,120]
[394307201,1763439371738,500.0,0.0004167,120]
[394307202,1763439371845,500.0,0.0004167,120]
[394307203,1763439371995,500.0,0.0004167,120]
[394307204,1763439372093,500.0,0.0004167,120]
[394307205,1763439372235,500.0,0.0004167,120]
[394307206,1763439372301,500.0,0.0004167,120]
[394307207,1763439372365,500.0,0.0004167,120]
[394307208,1763439372488,500.0,0.0004167,120]
[394307209,1763439372517,500.0,0.0004167,120]
[394307210,1763439372547,500.0,0.0004167,120]
[394307211,1763439372801,430.25437203,0.0004167,120]
[394307212,1763439372837,500.0,0.0004167,120]
[394307213,1763439372869,500.0,0.0004167,120]
[394307214,1763439372898,500.0,0.0004167,120]
[394307215,1763439373003,624.93353532,0.0004167,120]
[394307216,1763439373031,500.0,0.0004167,120]
[394307217,1763439373102,500.0,0.0004167,120]
[394307218,1763439373243,500.0,0.0004167,120]
[394307219,1763439373274,500.0,0.0004167,120]
[394307220,1763439373356,500.0,0.0004167,120]
[394307221,1763439373407,500.0,0.0004167,120]
[394307222,1763439373475,508.92600874,0.0004167,120]
[394307223,1763439373590,500.0,0.0004167,120]
[394307224,1763439373659,500.0,0.0004167,120]
[394307225,1763439373822,500.0,0.0004167,120]
[394307226,1763439373852,500.0,0.0004167,120]
[394307227,1763439373883,500.0,0.0004167,120]
[394307228,1763439373918,500.0,0.0004167,120]
[394307229,1763439374098,500.0,0.0004167,120]
[394307230,1763439374148,500.0,0.0004167,120]
[394307231,1763439374181,427.60727908,0.0004167,120]
[394307232,1763439374334,308.12538456,0.0004167,120]
[394307233,1763439374371,500.0,0.0004167,120]
[394307234,1763439374446,500.0,0.0004167,120]
[394307235,1763439374487,500.0,0.0004167,120]
[394307236,1763439374556,500.0,0.0004167,120]
[394307237,1763439374623,500.0,0.0004167,120]
[394307238,1763439374692,500.0,0.0004167,120]
[394307239,1763439374789,500.0,0.0004167,120]
[394307240,1763439374820,500.0,0.0004167,120]
[394307241,1763439374883,219.03552545,0.0004167,120]
[394307242,1763439374979,500.0,0.0004167,120]
[394307243,1763439375035,500.0,0.0004167,120]
[394307244,1763439375066,500.0,0.0004167,120]
[394307245,1763439375259,500.0,0.0004167,120]
[394307246,1763439375289,287.18154669,0.0004167,120]
[394307247,1763439375321,500.0,0.0004167,120]
[394307248,1763439375501,266.78566983,0.0004167,120]
[394307249,1763439375557,500.0,0.0004167,120]
[394307250,1763439375798,295.30227817,0.0004167,120]
[394307251,1763439376153,500.0,0.0004167,120]
[394307252,1763439376401,500.0,0.0004167,120]
[394307253,1763439376921,500.0,0.0004167,120]
[394307254,1763439376951,220.13098538,0.0004167,120]
[394307255,1763439376987,324.26322152,0.0004167,120]
[394307257,1763439377045,500.0,0.0004167,120]
[394307258,1763439377076,152.15569036,0.0004167,120]
[394307259,1763439377106,500.0,0.0004167,120]
[394307260,1763439377314,500.0,0.0004167,120]
[394307261,1763439377343,500.0,0.0004167,120]
[394307262,1763439377524,500.0,0.0004167,120]
[394307263,1763439377593,500.0,0.0004167,120]
[394307264,1763439377755,500.0,0.0004167,120]
[394307265,1763439377784,500.0,0.0004167,120]
[394307266,1763439377837,500.0,0.0004167,120]
[394307267,1763439378008,500.0,0.0004167,120]
[394307268,1763439378040,500.0,0.0004167,120]
[394307269,1763439378153,500.0,0.0004167,120]
[394307270,1763439378254,500.0,0.0004167,120]
[394307271,1763439378283,500.0,0.0004167,120]
[394307272,1763439378382,500.0,0.0004167,120]
[394307273,1763439378483,500.0,0.0004167,120]
[394307274,1763439378767,500.0,0.0004167,120]
[394307275,1763439378805,312.28029999,0.0004167,120]
[394307276,1763439378849,500.0,0.0004167,120]
[394307277,1763439378880,500.0,0.0004167,120]
[394307278,1763439378918,500.0,0.0004167,120]
[394307279,1763439378978,500.0,0.0004167,120]
[394307280,1763439379018,500.0,0.0004167,120]
[394307281,1763439379049,500.0,0.0004167,120]
[394307282,1763439379259,500.0,0.0004167,120]
[394307283,1763439379290,500.0,0.0004167,120]
[394307284,1763439379320,500.0,0.0004167,120]
[394307285,1763439379350,500.0,0.0004167,120]
[394307286,1763439379515,500.0,0.0004167,120]
[394307287,1763439379548,500.0,0.0004167,120]
[394307288,1763439379582,500.0,0.0004167,120]
[394307289,1763439379613,332.65543854,0.0004167,120]
[394307290,1763439379758,446.73836455,0.0004167,120]
[394307291,1763439379806,500.0,0.0004167,120]
[394307292,1763439379838,500.0,0.0004167,120]
[394307293,1763439380057,500.0,0.0004167,120]
[394307294,1763439380090,500.0,0.0004167,120]
[394307295,1763439380298,500.0,0.0004167,120]
[394307296,1763439380329,355.94385174,0.0004167,120]
[394307297,1763439380359,207.27314874,0.0004167,120]
[394307298,1763439380580,500.0,0.0004167,120]
[394307299,1763439380611,500.0,0.0004167,120]
[394307300,1763439380825,500.0,0.0004167,120]
[394307301,1763439380897,500.0,0.0004167,120]
[394307302,1763439381093,572.6896783,0.0004167,120]
[394307303,1763439381166,500.0,0.0004167,120]
[394307304,1763439381197,500.0,0.0004167,120]
[394307305,1763439381414,500.0,0.0004167,120]
[394307306,1763439381446,493.85131728,0.0004167,120]
[394307307,1763439381475,516.07293776,0.0004167,120]
[394307308,1763439381639,500.0,0.0004167,120]
[394307309,1763439381671,515.51281882,0.0004167,120]
[394307310,1763439381921,500.0,0.0004167,120]
[394307311,1763439382152,500.0,0.0004167,120]
[394307312,1763439382266,500.0,0.0004167,120]
[394307313,1763439382383,500.0,0.0004167,120]
[394307314,1763439382519,500.0,0.0004167,120]
[394307315,1763439382633,500.0,0.0004167,120]
[394307316,1763439382883,500.0,0.0004167,120]
[394307317,1763439382963,500.0,0.0004167,120]
[394307318,1763439383120,500.0,0.0004167,120]
[394307319,1763439383191,500.0,0.0004167,120]
[394307320,1763439383330,500.0,0.0004167,120]
[394307321,1763439383404,500.0,0.0004167,120]
[394307322,1763439383450,500.0,0.0004167,120]
[394307323,1763439383499,500.0,0.0004167,120]
[394307324,1763439383558,500.0,0.0004167,120]
[394307325,1763439383641,308.02086999,0.0004167,120]
[394307326,1763439383688,500.0,0.0004167,120]
[394307327,1763439383753,500.0,0.0004167,120]
[394307328,1763439383784,465.95203679,0.0004167,120]
[394307329,1763439383918,500.0,0.0004167,120]
[394307330,1763439383998,500.0,0.0004167,120]
[394307331,1763439384158,500.0,0.0004167,120]
[394307332,1763439384189,417.07885392,0.0004167,120]
[394307333,1763439384228,576.13881917,0.0004167,120]
[394307334,1763439384386,500.0,0.0004167,120]
[394307335,1763439384624,500.0,0.0004167,120]
[394307336,1763439384851,500.0,0.0004167,120]
[394307337,1763439385080,500.0,0.0004167,120]
[394307338,1763439385330,456.82863993,0.0004167,120]
[394307339,1763439385461,500.0,0.0004167,120]
[394307340,1763439385708,500.0,0.0004167,120]
[394307341,1763439385808,500.0,0.0004167,120]
[394307342,1763439386177,500.0,0.0004167,120]
[394307343,1763439386211,368.02910938,0.0004167,120]
[394307344,1763439386244,264.52063006,0.0004167,120]
[394307345,1763439386273,500.0,0.0004167,120]
[394307346,1763439386327,500.0,0.0004167,120]
[394307347,1763439386469,500.0,0.0004167,120]
[394307348,1763439386583,500.0,0.0004167,120]
[394307349,1763439386680,500.0,0.0004167,120]
[394307350,1763439386862,500.0,0.0004167,120]
[394307351,1763439386893,500.0,0.0004167,120]
[394307352,1763439387195,500.0,0.0004167,120]
[394307353,1763439387341,500.0,0.0004167,120]
[394307354,1763439387370,500.0,0.0004167,120]
[394307355,1763439387399,500.0,0.0004167,120]
[394307356,1763439387434,500.0,0.0004167,120]
[394307357,1763439387465,500.0,0.0004167,120]
[394307358,1763439387505,500.0,0.0004167,120]
[394307359,1763439387563,500.0,0.0004167,120]
[394307360,1763439387593,500.0,0.0004167,120]
[394307361,1763439387622,500.0,0.0004167,120]
[394307362,1763439387655,500.0,0.0004167,120]
[394307363,1763439387753,500.0,0.0004167,120]